Cogmind - Beta 14 @@@ ROGUE MODE // 2024.10.19 @ 00:43:45 Player: KURIIRI Result: Self-destructed Performance ------------- Evolutions (1) 500 Regions Visited (3) 600 Robots Destroyed (25) 125 Value Destroyed (594) 594 Prototype IDs (0) 0 Alien Tech Used (0) 0 Bonus (-12) -12 TOTAL SCORE: 1807 Bonus ------- Friendly Fire -12 Cogmind --------- Core Integrity 400/400 Matter 300/300 Energy 125/125 System Corruption 0% Temperature Cool (0) Movement Treading (160) Location -9/Materials Parts ------- > --- POWER (1) -------- Light Ion Engine > --- PROPULSION (2) --- Light Treads Light Treads > --- UTILITY (2) ------ Large Storage Unit Visual Processing Unit > --- WEAPON (4) ------- Small Laser Light Cannon > --- INVENTORY (15) --- Light Nuclear Core Seismic Detector Small Laser Small Laser Light Assault Rifle Datajack Peak State ------------ > --- POWER ------------ Ion Engine > --- PROPULSION ------- Light Treads Light Treads > --- UTILITY ---------- Small Storage Unit Visual Processing Unit > --- WEAPON ----------- Particle Gun Light Assault Rifle > --- INVENTORY -------- Light Treads Small Laser Small Laser [Rating: 9] Favorites ----------- Power Ion Engine Engine Ion Engine Propulsion Light Treads Treads Light Treads Utility Visual Processing Unit Storage Large Storage Unit Processor Visual Processing Unit Weapon Small Laser Energy Gun Small Laser Ballistic Gun Light Assault Rifle Ballistic Cannon Light Cannon Build | -11 -10 -10 -9 ------- Run | Yrd Mat Min Mat Slots Evolved 2 | . . . 2 Power . | . . . . Propulsion . | . . . . Utility . | . . . . Weapon 2 | . . . 2 Parts Attached 15 | 6 8 1 . Power 2 | 1 . 1 . Engine 2 | 1 . 1 . Core . | . . . . Reactor . | . . . . Propulsion 3 | 2 1 . . Treads 3 | 2 1 . . Leg . | . . . . Wheel . | . . . . Hover . | . . . . Flight . | . . . . Utility 3 | 1 2 . . Device . | . . . . Storage 2 | 1 1 . . Processor 1 | . 1 . . Hackware . | . . . . Protection . | . . . . Artifact . | . . . . Weapon 7 | 2 5 . . Energy Gun 5 | 2 3 . . Energy Cannon . | . . . . Ballistic Gun 1 | . 1 . . Ballistic Cannon 1 | . 1 . . Launcher . | . . . . Special Weapon . | . . . . Impact Weapon . | . . . . Slashing Weapon . | . . . . Piercing Weapon . | . . . . Special Melee Weapon . | . . . . Unidentified Prototypes . | . . . . Parts Lost 4 | . 4 . . Power 1 | . 1 . . Propulsion 1 | . 1 . . Utility . | . . . . Weapon 2 | . 2 . . Highest Loss Streak 4 | . 4 . . To Critical Strikes . | . . . . Average Slot Usage (%) 90 | . 87 98 77 Engine 8 | . 6 12 11 Treads 26 | . 26 28 22 Storage 13 | . 14 14 11 Processor 12 | . 11 14 11 Energy Gun 16 | . 17 14 11 Ballistic Gun 4 | . 5 . . Ballistic Cannon 6 | . 4 14 11 Peak Build Rating 9 | 6 9 8 8 Average Rating 7 | 4 7 7 8 On Entrance 5 | . 6 7 8 Naked Turns . | . . . . Heaviest Build 29 | 12 29 27 27 Greatest Support 40 | 40 40 40 40 Greatest Overweight (x) 1 | . 1 . . Average Overweight (x) . | . . . . Largest Inventory Capacity 15 | 8 15 15 15 Average Capacity 13 | 7 13 15 15 Most Carried 6 | . 6 6 6 Average Carried 4 | . 4 6 6 Final Capacity 15 | 8 15 15 15 Final Carried 6 | . 6 6 6 Class Distribution -------------------- 90% | Mutant 9% | Commander-Mutant Dominant Class ---------------- Mutant | -10/Materials Mutant | -10/Mines Commander-Mutant | -9/Materials Resources | -11 -10 -10 -9 ----------- Run | Yrd Mat Min Mat Matter Collected 457 | 208 220 29 . Remotely . | . . . . Salvage Created 710 | . 679 31 . Parts 55 | . 52 3 . Haulers Intercepted 1 | . 1 . . Recyclers Shooed 1 | . 1 . . Parts Field Recycled . | . . . . Retrieved Matter . | . . . . Parts Self-Destructed . | . . . . Prevented . | . . . . Kills | -11 -10 -10 -9 ------- Run | Yrd Mat Min Mat Combat Hostiles Destroyed 21 | . 18 3 . Guns 15 | . 15 . . Cannons 6 | . 3 3 . Classes Destroyed 4 | . 4 . . Hauler 1 | . 1 . . Watcher 3 | . 3 . . Swarmer 9 | . 6 3 . Grunt 12 | . 12 . . Best Kill Streak 4 | . 4 3 . Combat Bots Only 3 | . 3 3 . Max Kills in Single Turn 2 | . 2 1 . Gunslinging . | . . . . Exploded . | . . . . Melee . | . . . . Uniques/NPCs Destroyed . | . . . . Combat | -11 -10 -10 -9 -------- Run | Yrd Mat Min Mat Hostile Shots Fired 103 | . 88 15 . Missed 27 | . 24 3 . Damage Taken 757 | . 659 98 . Core 112 | . 96 16 . Absorbed by Shields . | . . . . Core Remaining (%) 77 | 100 . 55 . Volleys Fired 80 | . 74 6 . Largest 2 | . 2 2 . Hottest 105 | . 105 75 . Shots Fired 157 | . 145 12 . Gun 139 | . 133 6 . Cannon 18 | . 12 6 . Launcher . | . . . . Special . | . . . . Kinetic 69 | . 63 6 . Thermal 88 | . 82 6 . Explosive . | . . . . Electromagnetic . | . . . . Robot Hit Streak 13 | . 13 6 . Robot Miss Streak 4 | . 4 2 . Penetration Max . | . . . . Secondary Targets . | . . . . Shots Hit Robots 101 | . 93 8 . Core Hits 43 | . 41 2 . Critical Kills 1 | . 1 . . Critical Parts Destroyed . | . . . . Critical Strikes 2 | . 2 . . Destroy 1 | . 1 . . Blast 1 | . 1 . . Melee Attacks . | . . . . Impact . | . . . . Slashing . | . . . . Piercing . | . . . . Sneak Attacks . | . . . . Combat Hostiles . | . . . . Follow-up Attacks . | . . . . Damage Inflicted 1252 | . 1109 143 . Guns 962 | . 926 36 . Cannons 276 | . 181 95 . Explosions . | . . . . Melee . | . . . . Ramming 14 | . 2 12 . Kinetic 543 | . 448 95 . Thermal 695 | . 659 36 . Explosive . | . . . . Electromagnetic . | . . . . Impact . | . . . . Slashing . | . . . . Piercing . | . . . . Highest Corruption . | . . . . Average Corruption . | . . . . Corruption Purged . | . . . . Corruption Blocked . | . . . . Overload Shots . | . . . . Overflow Damage 9 | . . 9 . Projectiles 9 | . . 9 . Explosions . | . . . . Melee . | . . . . Knockbacks 1 | . . 1 . Impact . | . . . . Kinetic 1 | . . 1 . Secondary . | . . . . Self-Inflicted Damage . | . . . . Shots . | . . . . Rammed 3 | . 1 2 . Targets Rammed 3 | . 1 2 . Kicked . | . . . . Crushed . | . . . . Highest Temperature 288 | . 288 . . Average Temperature 81 | . 81 . . Received Heat Transfer 243 | . 243 . . Siege Activations . | . . . . Robots Corrupted . | . . . . Combat Hostiles . | . . . . Parts Fried . | . . . . Impact Corruptions . | . . . . Robots Melted . | . . . . Combat Hostiles . | . . . . Parts Melted 2 | . 2 . . Heat Transferred 1591 | . 1516 75 . Parts Sabotaged . | . . . . Parts Stolen . | . . . . Parts Stripped . | . . . . Power Chain Reactions . | . . . . Alert | -11 -10 -10 -9 ------- Run | Yrd Mat Min Mat Peak Influence 211 | . 211 100 39 Initial 39 | . . . 39 Average 80 | . 78 97 39 Maximum Alert Level 1 | . 1 . . Low Security (%) 96 | 100 95 100 100 Level 1 3 | . 4 . . Level 2 . | . . . . Level 3 . | . . . . Level 4 . | . . . . Level 5 . | . . . . High Security . | . . . . Max Security . | . . . . Squads Dispatched 3 | . 3 . . Investigation 3 | . 3 . . Extermination . | . . . . Reinforcement . | . . . . Assault . | . . . . Garrison . | . . . . Intercept . | . . . . Searches Triggered . | . . . . Construction Impeded . | . . . . Haulers Reinforced . | . . . . Active Scanning Responses . | . . . . Cargo Convoy Interrupts . | . . . . Stealth | -11 -10 -10 -9 --------- Run | Yrd Mat Min Mat Distress Signals . | . . . . Communications Jammed . | . . . . Distress Signals . | . . . . Times Spotted 28 | . 25 3 . Peak Tracking Total 5 | . 5 3 . Tactical Retreats 1 | . 1 . . Traps | -11 -10 -10 -9 ------- Run | Yrd Mat Min Mat Traps Triggered . | . . . . Indirectly . | . . . . Trap Hack Attempts . | . . . . Triggered . | . . . . Disarmed . | . . . . Reprogrammed . | . . . . Reused . | . . . . Traps Extracted . | . . . . Installed . | . . . . Triggered . | . . . . Machines | -11 -10 -10 -9 ---------- Run | Yrd Mat Min Mat Machines Disabled 2 | . . 2 . Max in Single Turn 1 | . . 1 . Machines Repaired . | . . . . Machines Dismantled . | . . . . Machines Sabotaged . | . . . . Overloaded Fab Kills . | . . . . Hacking | -11 -10 -10 -9 --------- Run | Yrd Mat Min Mat Machines Accessed 7 | . 7 . . Terminals 7 | . 7 . . Fabricators . | . . . . Repair Stations . | . . . . Recycling Units . | . . . . Scanalyzers . | . . . . Garrison Access . | . . . . Total Hacks 23 | . 23 . . Successful 15 | . 15 . . Failed 7 | . 7 . . Catastrophic 1 | . 1 . . Database Lockouts 1 | . 1 . . Manual 20 | . 20 . . Terminals 23 | . 23 . . Fabricators . | . . . . Repair Stations . | . . . . Recycling Units . | . . . . Scanalyzers . | . . . . Garrison Access . | . . . . Terminal Hacks 9 | . 9 . . Robot Analysis 5 | . 5 . . Terminal Index 1 | . 1 . . Unreport Threat 2 | . 2 . . Zone Layout 1 | . 1 . . Fabricator Hacks . | . . . . Repair Station Hacks . | . . . . Recycling Unit Hacks . | . . . . Scanalyzer . | . . . . Garrison Access Hacks . | . . . . Unauthorized Hacks 6 | . 6 . . Terminals 6 | . 6 . . Assimilate 2 | . 2 . . Botnet 3 | . 3 . . Operators 1 | . 1 . . Fabricators . | . . . . Repair Stations . | . . . . Recycling Units . | . . . . Scanalyzers . | . . . . Garrison Access . | . . . . Data Cores Recovered . | . . . . Used . | . . . . Hacking Detections 7 | . 7 . . Full Trace Events 4 | . 4 . . Feedback Events . | . . . . Feedback Blocked . | . . . . Robot Schematics Acquired . | . . . . Robots Built . | . . . . Authchips . | . . . . Time . | . . . . Total Robot Build Rating . | . . . . Part Schematics Acquired . | . . . . Parts Built . | . . . . Authchips . | . . . . Time . | . . . . Total Part Build Rating . | . . . . Parts Repaired . | . . . . Time . | . . . . Parts Recycled . | . . . . Recycled Matter . | . . . . Retrieved Matter . | . . . . Retrieved Components . | . . . . Parts Scanalyzed . | . . . . Part Schematics Acquired . | . . . . Parts Damaged . | . . . . Bothacking | -11 -10 -10 -9 ------------ Run | Yrd Mat Min Mat Used RIF Installer . | . . . . Robots Hacked . | . . . . Non-combat . | . . . . Combat . | . . . . Robot Hacks Applied . | . . . . Relay Couplers Released . | . . . . Fabnet Peak Effective % . | . . . . Robots Rewired . | . . . . Allies Hacked . | . . . . Hacks Repelled . | . . . . Allies | -11 -10 -10 -9 -------- Run | Yrd Mat Min Mat Total Allies 5 | . 2 3 . Largest Group 4 | . 2 4 4 Highest-Rated Group 50 | . 20 50 50 Highest-Rated Ally 16 | . 10 16 16 Total Orders 2 | . . 2 . STAY 1 | . . 1 . FOLLOW 1 | . . 1 . Ally Attacks . | . . . . Total Damage . | . . . . Kills . | . . . . Allies Corrupted . | . . . . Allies Melted . | . . . . Intel | -11 -10 -10 -9 ------- Run | Yrd Mat Min Mat Robot Analysis Total 5 | . 5 . . Derelict Logs Recovered 1 | . . 1 . Drone Launches . | . . . . Drone Recoveries . | . . . . Exploration | -11 -10 -10 -9 ------------- Run | Yrd Mat Min Mat Turns Passed 1569 | 50 1167 347 5 Spaces Moved 774 | 28 540 203 3 Core 2 | 2 . . . Treads 772 | 26 540 203 3 Legs . | . . . . Wheels . | . . . . Hover . | . . . . Flight . | . . . . Fastest Speed 50 | 50 160 160 160 Average Speed 163 | 152 165 160 160 Slowest Speed 240 | 160 240 160 160 Overloaded Moves . | . . . . Propulsion Burnouts . | . . . . Robots Hopped . | . . . . Cave-ins Triggered . | . . . . Exploration Rate (%) 32 | 3 88 38 2 Regions Visited 3 Branch Regions 1 Pre-discovered Areas . | . . . . Known Exits Taken . | . . . . Unknown Exits Taken 3 | 1 1 1 . Scrap Searched 1 | . . 1 . Spaces Dug . | . . . . Terrain Destroyed . | . . . . Melee . | . . . . Projectile . | . . . . AOE . | . . . . Terrain Rammed . | . . . . Walls Destroyed . | . . . . Machines Disabled . | . . . . Actions | -11 -10 -10 -9 --------- Run | Yrd Mat Min Mat Total 926 | 33 678 212 3 Wait 48 | . 47 1 . Move 771 | 27 539 202 3 Hop . | . . . . Pick Up 8 | . 8 . . Fast Attach 8 | 6 1 1 . Attach 3 | . 3 . . Detach . | . . . . Swap 4 | . 4 . . Drop 1 | . 1 . . Fire 80 | . 74 6 . Melee . | . . . . Ram . | . . . . Kick . | . . . . Crush 3 | . 1 2 . Escape Stasis . | . . . . Rewire . | . . . . Trap . | . . . . Miscellaneous . | . . . . Route ------- -11/Scrapyard -10/Materials (discovered 4 exits: [*Mat x2] / [*Min x2]) -10/Mines (discovered 2 exits: [*Mat] / [*Exi]) -9/Materials History --------- Turn | Location | Event 21 | -11/Scrapyard | Discovered new exit (range 16) 51 | -11/Scrapyard | Entered Materials 307 | -10/Materials | Build established: Mutant 343 | -10/Materials | Discovered new exit (range 17) 578 | -10/Materials | Discovered new exit (range 14) 578 | -10/Materials | Discovered new exit (range 15) 658 | -10/Materials | Lost 4 parts (1p1n2w) 1071 | -10/Materials | Central database locked down 1132 | -10/Materials | Discovered new exit (range 11) 1218 | -10/Materials | Entered Mines 1218 | -10/Mines | Accompanied by 1 ally 1255 | -10/Mines | Met a Derelict bent on vengeance 1348 | -10/Mines | Deemed a non-threat by the Exiles lab entrance 1348 | -10/Mines | Discovered new exit (range 5) 1416 | -10/Mines | Assisted by bots powering up and referring to "LRC-V3" 1462 | -10/Mines | Discovered new exit (range 11) 1523 | -10/Mines | Learned Materials garrison access intel 1565 | -10/Mines | Entered Materials 1565 | -9/Materials | Accompanied by 4 allies 1565 | -9/Materials | Evolved 2 slots: Weapon x2 1570 | -9/Materials | Self-destructed Last Messages --------------- 01400_ Slammed into U-05 Engineer. 01416_ Trooper 1a: "Hello LRC-V3. What is your command?" 01416_ Mercenary 1a: "Hello LRC-V3. What is your command?" 01416_ Trooper 1b: "Hello LRC-V3. What is your command?" 01444_ Searching scrap... 01444_ Found Com. Wheel. 01444_ Found Lrg. Storage Unit. 01444_ Found Aluminum Leg. 01444_ Found 35 Matter. 01445_ Acquired 17 matter. 01462_ EXIT=FOUND 01523_ Acquired derelict log, extracted data. Data stored: Materials garrison access intel. 01548_ Slammed into R-06 Scavenger. PARAMETERS=WEAPON+2 LOCATION=UNKNOWN GOAL=ESCAPE Map ----- +----------------------------------------------------+ | ??????????????????????????????????????????? | | ??????????????????????????????????????????? | | ??????????????????????????????????????????? | | ??????????????????????????????????????????? | | ??????????????????????????????????????????? | | ??????????????????????????????????????????? | | ??????????????????????????????????????????? | | ??????????????????????????????????????????? | | ??????????????????????????????????????????? | | ??????????????????????????????????????????? | | ??????????????????????????????????????????? | | ??????????????????????????????????????????? | | ??????????????????????????????????????????? | | ??????????????????????????????????????????? | | ???????????????????#??????????????????????? | | ?????????????????? #??????????????????????? | | ?????????????????? #??????????????????????? | | ?????????????????? #??????????????????????? | | ?????????????????? #??????????????????????? | | ????????????????? #??????????????????????? | | ????????????????? #??????????????????????? | | ????????????????? #???????????? ""???????? | | ?????????????####+########## ???????? | | ?????????????# g ??????? | | ?????????????# g ??????? | | ?????????????#o g@ ??????? | | ?????????????####### ??????? | | ?????????????????????? ##########?????????? | | ??????????????????????????????????????????? | | ??????????????????????????????????????????? | | ??????????????????????????????????????????? | | ??????????????????????????????????????????? | | ??????????????????????????????????????????? | | ??????????????????????????????????????????? | | ??????????????????????????????????????????? | | ??????????????????????????????????????????? | | ??????????????????????????????????????????? | | ??????????????????????????????????????????? | | ??????????????????????????????????????????? | | ??????????????????????????????????????????? | | ??????????????????????????????????????????? | | ??????????????????????????????????????????? | | ??????????????????????????????????????????? | | ??????????????????????????????????????????? | | ??????????????????????????????????????????? | | ??????????????????????????????????????????? | | ??????????????????????????????????????????? | | ??????????????????????????????????????????? | | ??????????????????????????????????????????? | | ??????????????????????????????????????????? | +----------------------------------------------------+ Best States ------------- Heat Dissipation 28 Energy Generation 10 Energy Capacity 250 Matter Stores 300 Matter Capacity 300 Sight Range 18 Terrain Scan Density 10 Evasion (%) 40 Recoil Reduction 2 Item Schematics ----------------- None Robot Schematics ------------------ None Fabricated ------------ Nothing Alien Tech Used ----------------- None Achievements -------------- None Challenges ------------ None Game ------ Seed DisruptionMobileSlayer Manual? 0 Play Time 00:11:14 Cumulative 127.5 hours Start 2024.10.18 @ 19:31:12 End 2024.10.19 @ 00:43:45 Sessions 5 Manual Loads 0 Difficulty Rogue Special Mode None Game No. 81 Rogue 45 Adventurer 36 Explorer 0 Win Type - Total 2 Types 2/0/0/0/0/0/0/0/0 Lore% 53 Gallery% 59 Achievement% 52 Wizard Run 0 Options --------- Layout 1 ASCII 0 Keyboard 0 Movement Numpad Keybinds 0 Fullscreen 1 Font 48/Smallcaps Map View 50x35 Zoom Use 0% Tactical HUD 1 Map Filters NONE Filters NONE Steam 1 RUN: 661001ce-b101-494b-a0e3-fe5800e89f97